bitfinex-derivatives/quotes_BNBF0:USTF0_20250521
["timestamp","ask_amount","ask_price","bid_price","bid_amount"]
[1747853453561,1.02312671,668.47,667.56,0.6546091]
[1747853453766,1.02312671,668.46,667.56,0.6546091]
[1747853453965,1.02312671,668.45,667.55,0.26039913]
[1747853454169,1.02312671,668.44,667.55,0.26039913]
[1747853454466,1.02312671,668.43,667.55,0.26039913]
[1747853454666,1.02312671,668.42,667.55,0.26039913]
[1747853454866,1.02312671,668.41,667.55,0.26039913]
[1747853455061,1.02312671,668.4,667.55,0.26039913]
[1747853455367,2.04201907,668.39,667.55,0.26039913]
[1747853455565,1.02312671,668.38,667.55,0.26039913]
[1747853455765,1.02312671,668.37,667.55,0.26039913]
[1747853455965,1.02312671,668.36,667.55,0.26039913]
[1747853456160,1.01889236,668.39,667.55,0.26039913]
[1747853456161,1.02312671,668.35,667.55,0.26039913]
[1747853456364,1.01889236,668.39,667.55,0.26039913]
[1747853456566,1.02345827,668.38,667.55,0.26039913]
[1747853456765,1.02345827,668.37,667.55,0.26039913]
[1747853456966,1.01889236,668.35,667.56,0.6546091]
[1747853457566,1.0236411,668.34,667.56,0.6546091]
[1747853457767,1.01889236,668.34,667.56,0.6546091]
[1747853458864,1.01889236,668.33,667.57,0.6546091]
[1747853459869,1.01889236,668.32,667.57,0.6546091]
[1747853461171,1.01889236,668.31,667.57,0.6546091]
[1747853462672,1.01889236,668.3,667.57,0.6546091]
[1747853463471,1.02391727,668.29,667.57,0.6546091]
[1747853463663,1.02391727,668.28,667.57,0.6546091]
[1747853463867,1.02391727,668.27,667.55,0.26038646]
[1747853464069,1.02391727,668.26,667.55,0.26038646]
[1747853464270,1.02391727,668.25,667.55,0.26038646]
[1747853464470,1.02391727,668.24,667.5,0.6546091]
[1747853464772,1.02391727,668.23,667.55,0.26043128]
[1747853464971,1.02391727,668.22,667.55,0.26043128]
[1747853465172,1.02391727,668.21,667.55,0.26043128]
[1747853465369,1.02430406,668.2,667.55,0.26043128]
[1747853465565,1.02430406,668.19,667.55,0.26043128]
[1747853465765,1.02430406,668.18,667.55,0.26043128]
[1747853465972,1.02425437,668.17,667.55,0.26043128]
[1747853466172,1.01889236,668.17,667.55,0.26043128]
[1747853467171,1.01889236,668.16,667.55,0.26043128]
[1747853467369,1.01889236,668.16,666.84,1.00651161]
[1747853467673,1.01889236,668.16,667.55,0.26048489]
[1747853467971,1.01889236,668.16,666.84,1.00651161]
[1747853468667,1.10876253,668.43,666.85,0.26048197]
[1747853469073,1.0234753,668.42,666.97,0.47325388]
[1747853469269,1.0234753,668.41,666.97,0.47325388]
[1747853469467,1.0234753,668.4,666.97,0.47325388]
[1747853469666,1.0234753,668.39,666.97,0.47325388]
[1747853469875,1.0234753,668.38,666.97,0.47325388]
[1747853470073,1.0234753,668.37,666.97,0.47325388]
[1747853470274,1.0234753,668.36,666.97,0.47325388]
[1747853470474,1.0234753,668.35,666.97,0.47325388]
[1747853470677,1.0234753,668.34,666.97,0.47325388]
[1747853470973,1.0234753,668.33,666.97,0.47325388]
[1747853471276,1.02249373,668.33,666.97,0.47325388]
[1747853471676,1.02249373,668.33,667.03,0.47325388]
[1747853472076,1.02249373,668.32,667.03,0.47325388]
[1747853473472,1.02249373,668.31,667.03,0.47325388]
[1747853474076,1.02249373,668.31,666.84,1.47976549]
[1747853474077,1.02249373,668.31,667.04,0.47325388]
[1747853474978,1.02249373,668.3,667.04,0.47325388]
[1747853475477,1.02371585,668.29,667.04,0.47325388]
[1747853475777,1.02249373,668.3,667.04,0.47325388]
[1747853476375,1.02371204,668.29,667.04,0.47325388]
[1747853476575,1.02249373,668.3,667.01,0.47325388]
[1747853476971,1.02249373,668.28,667.01,0.47325388]
[1747853478280,1.02249373,668.28,667.1,0.47325388]
[1747853478671,1.02249373,668.47,667.1,0.47325388]
[1747853480582,1.02249373,668.46,667.1,1.00651161]
[1747853481582,1.02249373,668.45,667.1,1.00651161]
[1747853483082,1.02249373,668.44,667.7,0.65702585]
[1747853484883,1.02249373,668.43,667.7,0.65702585]
[1747853486183,1.02249373,668.42,667.62,0.65702585]
[1747853487283,1.02391624,668.41,667.62,0.65702585]
[1747853487483,1.02391624,668.4,667.62,0.65702585]
[1747853487784,1.02391624,668.39,667.73,0.65702585]
[1747853487983,1.02413246,668.38,667.73,0.65702585]
[1747853488185,1.02249373,668.41,667.73,0.65702585]
[1747853488878,1.10876253,668.64,667.86,0.65702585]
[1747853489083,1.02395768,668.63,667.86,0.65702585]
[1747853489383,1.02395768,668.62,667.86,0.65702585]
[1747853489583,1.02395768,668.61,667.86,0.65702585]
[1747853489884,1.02395768,668.6,667.86,0.65702585]
[1747853490081,1.02395768,668.59,667.86,0.65702585]
[1747853490287,1.10876253,668.64,667.86,0.65702585]
[1747853490983,1.0172017,668.63,667.86,0.65702585]
[1747853492886,1.0172017,668.62,667.89,0.65702585]
[1747853494790,1.0172017,668.61,667.89,0.65702585]
[1747853496186,1.0172017,668.6,667.76,0.26029395]
[1747853496987,1.0172017,668.59,667.76,0.26029395]
[1747853498389,1.10876253,668.49,667.76,0.26029395]
[1747853499788,1.0172017,668.48,667.76,0.26029395]
[1747853500689,0.43860862,668.47,667.76,0.26029395]
[1747853500890,0.43862875,668.46,667.76,0.26029395]
[1747853501186,1.0172017,668.48,667.76,0.26029395]
[1747853501389,1.10876253,668.42,667.76,0.26029395]
[1747853502089,0.43863822,668.41,667.76,0.26029395]
[1747853502289,0.43863822,668.4,667.76,0.26029395]
[1747853502485,0.43863822,668.39,667.76,0.26029395]
[1747853502690,0.43863822,668.38,667.76,0.26029395]
[1747853502989,1.0172017,668.4,667.76,0.26029395]
[1747853502990,0.43857362,668.37,667.76,0.26029395]
[1747853503190,0.43857362,668.36,667.76,0.26029395]
[1747853503385,0.43857362,668.35,667.52,0.65702585]
[1747853503586,0.43857362,668.34,667.52,0.65702585]
[1747853503789,0.43857362,668.33,667.52,0.65702585]
[1747853503984,1.0172017,668.4,667.52,0.65702585]
[1747853504189,1.10876253,668.3,667.35,0.65702585]
[1747853504690,1.10876253,668.3,667.36,0.26046539]
[1747853505391,1.0172017,668.29,667.36,0.26046539]
[1747853506391,1.0172017,668.29,667.35,0.65702585]
[1747853506890,1.10876253,668.27,667.36,0.26047904]
[1747853508090,1.0172017,668.26,667.36,0.26047904]
[1747853509387,1.0172017,668.26,667.32,0.65702585]
[1747853509586,1.0172017,668.25,667.27,0.65702585]
[1747853509792,1.0172017,668.25,667.36,0.26049464]
[1747853509989,1.0172017,668.25,667.27,0.65702585]
[1747853510390,1.0172017,668.24,667.27,0.65702585]
[1747853510792,1.0172017,668.24,667.28,0.26049562]
[1747853511992,1.10876253,668.26,667.28,0.26049562]
[1747853511993,1.0172017,668.23,667.28,0.26049562]
[1747853513090,1.0172017,668.22,667.28,0.26049562]
[1747853514091,1.0172017,668.21,667.34,0.65702585]
[1747853514894,1.0172017,668.2,667.34,0.65702585]
[1747853516696,1.0172017,668.19,667.3,0.65702585]
[1747853517893,1.0172017,668.18,667.3,0.65702585]
[1747853518199,0.43749993,668.17,667.3,0.65702585]
[1747853518398,1.0172017,668.18,667.3,0.65702585]
[1747853518598,0.43722547,668.17,667.3,0.65702585]
[1747853518799,1.0172017,668.18,667.3,0.65702585]
[1747853519000,0.43722819,668.17,667.3,0.65702585]
[1747853519298,1.0172017,668.18,667.29,0.26052877]
[1747853519299,1.0172017,668.16,667.29,0.26052877]
[1747853520002,1.0172017,668.15,667.29,0.26052877]
[1747853521299,1.0172017,668.14,667.29,0.26052877]
[1747853521499,1.0172017,668.14,666.79,0.65702585]
[1747853521706,1.0172017,668.14,667.29,0.26056876]
[1747853522004,1.0172017,668.14,666.79,0.65702585]
[1747853522604,1.0172017,668.13,666.79,0.65702585]
[1747853522807,1.0172017,668.13,666.8,0.26056876]
[1747853523805,1.0172017,668.12,666.8,0.26056876]
[1747853524406,1.0172017,668.12,666.75,0.65702585]
[1747853524705,1.0172017,668.12,666.8,0.26058632]
[1747853524904,1.0172017,668.11,666.8,0.26058632]
[1747853526407,1.0172017,668.1,666.89,0.65702585]
[1747853527607,1.0172017,668.09,666.89,0.65702585]
[1747853528708,1.0172017,668.08,666.96,0.65702585]
[1747853529610,1.0172017,668.07,666.96,0.65702585]
[1747853530908,1.0172017,668.06,666.82,0.65702585]
[1747853531909,1.0172017,668.05,666.82,0.65702585]
[1747853533612,1.0172017,668.04,666.86,0.65702585]
[1747853534913,1.10876253,668.26,666.86,0.65702585]
[1747853536416,1.10876253,668.21,666.91,0.65702585]
[1747853539319,3.70612448,668.97,667.05,0.65702585]
[1747853539320,2.11891233,668.32,667.05,0.65702585]
[1747853540320,1.0101498,668.31,667.05,0.65702585]
[1747853541921,1.0101498,668.3,667.06,0.65702585]
[1747853543118,1.0101498,668.29,667.06,0.65702585]
[1747853544923,1.0101498,668.28,667.03,0.65702585]
[1747853545722,1.0101498,668.27,667.03,0.65702585]
[1747853546721,1.10876253,668.17,666.99,0.26054535]
[1747853548226,1.0101498,668.16,666.99,0.26054535]
[1747853550225,1.0101498,668.15,666.99,0.26054535]
[1747853551425,1.0101498,668.15,666.91,0.65702585]
[1747853551724,1.0101498,668.14,666.99,0.26056973]
[1747853552024,1.0101498,668.14,666.91,0.65702585]
[1747853553324,1.0101498,668.13,666.99,0.65702585]
[1747853553726,0.43694739,668.12,666.99,0.65702585]
[1747853553929,0.43694739,668.11,666.99,0.65702585]
[1747853554125,1.0101498,668.13,666.99,0.65702585]
[1747853554326,0.43704697,668.12,666.99,0.65702585]
[1747853554526,1.0101498,668.13,666.99,0.65702585]
[1747853554527,0.43704697,668.11,666.99,0.65702585]
[1747853554726,0.43704697,668.1,666.99,0.65702585]
[1747853556529,1.10876253,667.88,666.95,0.26061754]
[1747853557424,1.10876253,667.88,666.01,1.47976549]
[1747853557729,1.10876253,667.88,666.95,0.26070736]
[1747853557931,1.0101498,667.87,666.95,0.26070736]
[1747853558125,1.0101498,667.87,666.01,1.47976549]
[1747853559032,1.0101498,667.86,666.01,1.47976549]
[1747853559224,1.0101498,667.86,666.02,0.26069857]
[1747853559635,1.0101498,667.86,666.47,0.47325388]
[1747853559930,1.0101498,667.85,666.47,0.47325388]
[1747853562138,1.0101498,667.84,666.48,0.47325388]
[1747853563332,1.0101498,667.83,666.48,0.47325388]
[1747853565039,1.0101498,667.82,666.48,0.47325388]
[1747853566238,1.0101498,667.81,666.48,0.47325388]
[1747853567439,1.0101498,667.8,666.48,0.47325388]
[1747853567944,1.0101498,667.8,666.31,0.26069661]
[1747853568644,1.0101498,667.79,666.31,0.26069661]
[1747853569543,1.0101498,667.79,666.29,0.47325388]
[1747853569842,3.70612448,668.77,666.31,0.26068685]
[1747853569843,1.0101498,667.78,666.31,0.26068685]
[1747853570944,1.0101498,667.77,666.31,0.26068685]
[1747853572547,1.0101498,667.76,666.31,0.26068685]
[1747853573646,1.0101498,667.75,666.31,0.26068685]
[1747853575150,1.0101498,667.74,666.31,0.26068685]
[1747853575551,1.0101498,667.74,666.16,1.00651161]
[1747853575752,1.0101498,667.74,666.31,0.26071224]
[1747853576051,1.0101498,667.74,666.16,1.00651161]
[1747853576451,1.0101498,667.73,666.16,1.00651161]
[1747853576951,1.0101498,667.73,666.17,0.2607347]
[1747853577347,1.0101498,667.72,666.17,0.2607347]
[1747853578250,1.0101498,667.71,666.17,0.2607347]
[1747853578452,1.0101498,667.71,666.16,1.00651161]
[1747853578852,1.0101498,667.71,666.17,0.26073666]
[1747853579556,1.0101498,667.71,666.29,0.47325388]
[1747853579856,1.0101498,667.7,666.35,1.00651161]
[1747853580954,1.0101498,667.69,666.35,1.00651161]
[1747853582658,1.0101498,667.86,666.35,1.00651161]
[1747853583760,1.0101498,667.85,666.35,1.00651161]
[1747853584760,1.0101498,667.85,666.4,0.47325388]
[1747853585260,1.0101498,667.84,666.4,0.47325388]
[1747853586463,1.10876253,667.92,666.4,0.47325388]
[1747853587460,1.10876253,667.92,666.5,0.47325388]
[1747853588556,1.0101498,668.02,666.5,0.47325388]
[1747853589660,1.0101498,668.02,666.61,0.47325388]
[1747853590164,1.0101498,668.01,666.61,0.47325388]
[1747853591762,1.0101498,668.0,666.48,0.47325388]
[1747853593066,1.0101498,667.99,666.48,0.47325388]
[1747853593467,0.43908385,667.98,666.48,0.47325388]
[1747853593666,0.43907251,667.97,666.48,0.47325388]
[1747853593867,1.0101498,667.99,666.48,0.47325388]
[1747853594069,1.0101498,667.99,666.5,0.47325388]
[1747853594767,1.0101498,667.98,666.5,0.47325388]
[1747853595570,1.0101498,667.97,666.5,0.47325388]
[1747853596969,1.0101498,667.97,666.42,0.26067416]
[1747853597569,1.10876253,667.92,666.42,0.26067416]
[1747853598572,1.0101498,667.91,666.42,0.26067416]
[1747853599975,1.0101498,667.9,666.42,0.26067416]
[1747853601877,1.0101498,667.89,666.42,0.26067416]
[1747853602478,1.0101498,667.89,666.3,0.47325388]
[1747853602777,1.0101498,667.89,666.42,0.26068197]
[1747853603074,1.0101498,667.89,666.3,0.47325388]
[1747853603377,1.0101498,667.89,666.46,0.47325388]
[1747853603677,2.11891233,667.88,666.46,0.47325388]
[1747853604575,1.0101498,667.87,666.46,0.47325388]
[1747853605778,1.0101498,667.86,666.46,0.47325388]
[1747853605981,1.0101498,667.86,666.45,0.26067025]
[1747853606880,1.0101498,667.85,666.45,0.26067025]
[1747853608083,2.11891233,667.84,666.45,0.26067025]
[1747853608283,2.11891233,667.84,666.46,0.47325388]
[1747853609182,1.0101498,667.83,666.46,0.47325388]
[1747853610784,0.44010606,667.82,666.46,0.47325388]
[1747853610977,1.10876253,667.78,666.46,0.47325388]
[1747853611385,1.10876253,667.78,666.45,0.26069173]
[1747853611584,1.10876253,667.78,666.28,0.47325388]
[1747853611782,1.10876253,667.78,666.45,0.26071029]
[1747853612091,1.10876253,667.78,666.28,0.47325388]
[1747853612391,1.0101498,667.77,666.28,0.47325388]
[1747853612993,1.0101498,667.77,666.29,0.26071712]
[1747853613693,1.0101498,667.76,666.29,0.26071712]
[1747853613993,1.0101498,667.76,666.32,0.47325388]
[1747853614893,1.0101498,667.75,666.32,0.47325388]
[1747853616097,1.0101498,667.75,666.29,0.26071712]
[1747853616296,1.0101498,667.74,666.29,0.26071712]
[1747853617493,1.0101498,667.74,666.26,1.00651161]
[1747853617797,1.0101498,667.74,666.29,0.26070638]
[1747853617997,1.0101498,667.73,666.29,0.26070638]
[1747853619499,1.0101498,667.72,666.29,0.26070638]
[1747853620502,1.0101498,667.72,666.26,1.00651161]
[1747853620703,1.0101498,667.71,666.26,1.00651161]
[1747853620902,1.0101498,667.71,666.29,0.26070833]
[1747853622303,1.0101498,667.7,666.29,0.26070833]
[1747853623503,1.0101498,667.7,666.0,1.41045768]
[1747853623705,1.0101498,667.69,666.0,1.41045768]
[1747853623900,1.0101498,667.69,666.29,0.26075033]
[1747853624098,1.0101498,667.69,666.0,1.41045768]
[1747853625006,1.0101498,667.69,666.16,0.47325388]
[1747853625199,1.0101498,667.68,666.16,0.47325388]
[1747853626306,1.0101498,667.67,666.16,0.47325388]
[1747853628105,1.0101498,667.66,666.32,1.00651161]
[1747853629314,1.0101498,667.65,666.32,1.00651161]
[1747853631916,1.0101498,667.64,666.32,1.00651161]
[1747853633014,1.0101498,667.63,666.32,1.00651161]
[1747853634320,1.0101498,667.62,666.32,1.00651161]
[1747853635422,1.0101498,667.61,666.32,1.00651161]
[1747853637224,1.0101498,667.6,666.32,1.00651161]
[1747853638324,1.0101498,667.59,666.32,1.00651161]
[1747853639425,1.0101498,667.58,666.32,1.00651161]
[1747853640927,1.0101498,667.57,666.32,1.00651161]
[1747853642228,1.10876253,667.75,666.3,0.26074838]
[1747853642229,1.0101498,667.56,666.42,1.00651161]
[1747853643226,1.0101498,667.55,666.42,1.00651161]
[1747853643824,1.0101498,667.55,666.44,0.47325388]
[1747853644728,1.10876253,667.7,666.44,0.47325388]
[1747853644929,1.10876253,667.82,666.44,0.47325388]
[1747853645732,1.03163279,667.81,666.44,0.47325388]
[1747853646638,1.03163279,667.81,666.42,1.00651161]
[1747853647033,1.03163279,667.8,666.42,1.00651161]
[1747853647832,1.03163279,667.79,666.42,1.00651161]
[1747853648932,1.03163279,667.78,666.42,1.00651161]
[1747853650333,1.03163279,667.77,666.42,1.00651161]
[1747853651531,3.70612448,668.67,666.42,1.00651161]
[1747853651532,1.03163279,667.76,666.49,0.47325388]
[1747853652732,1.03163279,667.75,666.49,0.47325388]
[1747853653834,1.03163279,667.75,666.45,0.47325388]
[1747853654135,1.03163279,667.74,666.54,1.00651161]
[1747853655936,1.03163279,667.73,666.54,1.00651161]
[1747853657538,1.03163279,667.72,666.54,1.00651161]
[1747853659139,1.03163279,667.71,666.54,1.00651161]
[1747853660439,1.03163279,667.7,666.54,1.00651161]
[1747853662137,1.03163279,667.69,666.54,1.00651161]
[1747853663940,1.03163279,667.68,666.54,1.00651161]
[1747853665140,1.03163279,667.67,666.54,1.00651161]
[1747853666738,1.03163279,667.66,666.54,1.00651161]
[1747853667843,1.03163279,667.65,666.54,1.00651161]
[1747853669146,1.03163279,667.64,666.6,1.00651161]
[1747853670443,1.03163279,667.63,666.6,1.00651161]
[1747853672242,1.03163279,667.62,666.6,1.00651161]
[1747853673749,1.03163279,667.61,666.6,1.00651161]
[1747853675446,1.10876253,667.89,666.6,1.00651161]
[1747853675447,1.10876253,667.92,666.6,1.00651161]
[1747853676653,1.02654096,667.91,666.6,1.00651161]
[1747853677554,1.02654096,667.9,666.6,1.00651161]
[1747853678447,1.02654096,667.89,666.6,1.00651161]
[1747853680355,1.02654096,667.88,666.6,1.00651161]
[1747853681755,1.02654096,667.87,666.6,1.00651161]
[1747853682453,1.02654096,667.87,666.66,0.47325388]
[1747853683258,1.02654096,667.86,666.66,0.47325388]
[1747853684756,1.02654096,667.85,666.66,0.47325388]
[1747853685158,1.02654096,667.85,666.63,0.26067123]
[1747853686558,1.02654096,667.84,666.63,0.26067123]
[1747853687962,1.02654096,667.83,666.63,0.26067123]
[1747853688860,0.43932955,667.82,666.63,0.26067123]
[1747853689060,1.02654096,667.83,666.63,0.26067123]
[1747853689557,1.02654096,667.83,665.56,1.00651161]
[1747853689753,1.02654096,667.81,665.56,1.00651161]
[1747853689960,1.02654096,667.81,666.63,0.26076205]
[1747853690162,1.02654096,667.81,665.56,1.00651161]
[1747853690354,0.43941287,667.8,665.56,1.00651161]
[1747853690555,1.02654096,667.79,665.56,1.00651161]
[1747853690958,1.02654096,667.79,665.75,0.26076596]
[1747853692461,1.10876253,667.74,665.75,0.26076596]
[1747853692658,1.10876253,667.74,665.69,0.47325388]
[1747853693761,1.02654096,667.73,665.69,0.47325388]
[1747853693960,1.02654096,667.73,665.75,0.26077671]
[1747853694160,1.02654096,667.73,666.42,0.47325388]
[1747853695061,1.02654096,667.72,666.42,0.47325388]
[1747853695964,1.02654096,667.72,665.89,1.00651161]
[1747853696162,1.02654096,667.71,665.89,1.00651161]
[1747853697662,1.02654096,667.7,665.89,1.00651161]
[1747853699666,1.02654096,667.69,665.89,1.00651161]
[1747853701565,1.02654096,667.68,665.89,1.00651161]
[1747853702770,1.02654096,667.68,666.45,0.47325388]
[1747853703069,1.02654096,667.67,666.45,0.47325388]
[1747853704474,1.02654096,667.66,666.45,0.47325388]
[1747853705577,1.02654096,667.65,666.45,0.47325388]
[1747853705775,1.02654096,667.65,666.4,0.47325388]
[1747853706876,1.02654096,667.64,666.4,0.47325388]
[1747853708177,1.02654096,667.63,666.4,0.47325388]
[1747853708377,1.02654096,667.63,666.25,0.47325388]
[1747853709778,1.02654096,667.62,666.34,1.00651161]
[1747853711086,1.02654096,667.61,666.34,1.00651161]
[1747853712285,2.22367469,668.06,666.34,1.00651161]
[1747853712286,1.02654096,667.6,666.34,1.00651161]
[1747853712884,1.02654096,667.59,666.34,1.00651161]
[1747853714286,3.70612448,668.55,666.34,1.00651161]
[1747853714287,1.02654096,667.58,666.34,1.00651161]
[1747853715287,1.02654096,667.57,666.34,1.00651161]
[1747853717389,1.02654096,667.56,666.34,1.00651161]
[1747853718689,1.02654096,667.55,666.34,1.00651161]
[1747853719891,1.02654096,667.54,666.34,1.00651161]
[1747853720094,1.02654096,667.54,666.51,0.47325388]
[1747853720994,1.02654096,667.53,666.51,0.47325388]
[1747853722487,1.02654096,667.52,666.51,0.47325388]
[1747853722691,1.02654096,667.52,666.52,0.47325388]
[1747853723489,1.02654096,667.51,666.52,0.47325388]
[1747853724696,1.02654096,667.5,666.52,0.47325388]
[1747853725397,1.02654096,667.5,666.39,1.47976549]
[1747853726096,1.02654096,667.49,666.39,1.47976549]
[1747853727497,1.02654096,667.48,666.39,0.47325388]
[1747853728098,1.02654096,667.48,666.38,0.26077866]
[1747853728398,1.02654096,667.69,666.38,0.26077866]
[1747853728593,0.43918835,667.68,666.14,1.41045768]
[1747853728797,0.43918835,667.67,666.38,0.26078355]
[1747853728999,1.02654096,667.69,666.38,0.26078355]
[1747853729198,0.43901561,667.68,666.14,1.41045768]
[1747853729494,0.43901561,667.67,666.14,1.41045768]
[1747853729699,1.02654096,667.69,666.14,1.41045768]
[1747853730002,1.02654096,667.66,666.15,0.26078453]
[1747853730299,0.43899174,667.65,666.15,0.26078453]
[1747853730501,0.43899174,667.64,666.15,0.26078453]
[1747853730694,0.43899174,667.63,666.15,0.26078453]
[1747853730897,1.02654096,667.66,666.15,0.26078453]
[1747853731097,0.43897333,667.65,666.15,0.26078453]
[1747853731393,0.43897333,667.64,666.15,0.26078453]
[1747853731597,1.02654096,667.63,666.15,0.26078453]
[1747853733203,1.02654096,667.62,666.15,0.26078453]
[1747853734099,1.02654096,667.61,666.15,0.26078453]
[1747853735703,1.02654096,667.6,666.15,0.26078453]
[1747853736704,1.02654096,667.59,666.15,0.26078453]
[1747853738307,1.02654096,667.58,666.15,0.26078453]
[1747853739707,1.02654096,667.57,666.15,0.26078453]
[1747853740709,1.02654096,667.57,666.08,1.00651161]
[1747853740902,1.02654096,667.57,666.15,0.26081482]
[1747853741509,1.02654096,667.56,666.15,0.26081482]
[1747853743412,1.02654096,667.55,666.15,0.26081482]
[1747853745614,1.02654096,667.54,666.15,0.26081482]
[1747853747012,1.02654096,667.53,666.15,0.26081482]
[1747853748711,1.02654096,667.52,666.15,0.26081482]
[1747853748916,1.02654096,667.52,666.26,0.47325388]
[1747853749610,1.02654096,667.51,666.26,0.47325388]
[1747853750917,1.02654096,667.5,666.26,0.47325388]
[1747853751415,1.02654096,667.5,666.19,0.2607601]
[1747853752217,1.02654096,667.73,666.19,0.2607601]
[1747853752616,1.02654096,667.73,665.89,0.47325388]
[1747853752917,1.02654096,667.73,666.19,0.26075912]
[1747853753117,1.02654096,667.73,665.89,0.47325388]
[1747853753716,1.02654096,667.72,665.89,0.47325388]
[1747853753917,1.02654096,667.72,666.3,0.47325388]
[1747853754611,1.02654096,667.71,666.3,0.47325388]
[1747853755813,1.02654096,667.7,666.32,1.00651161]
[1747853757318,1.02654096,667.69,666.32,1.00651161]
[1747853759019,1.02654096,667.68,666.32,1.00651161]
[1747853760514,1.02654096,667.67,666.32,1.00651161]
[1747853761821,1.02654096,667.66,666.32,1.00651161]
[1747853763622,1.02654096,667.65,666.32,1.00651161]
[1747853765325,1.02654096,667.64,666.32,1.00651161]
[1747853766526,1.02654096,667.63,666.32,1.00651161]
[1747853767829,1.02654096,667.62,666.32,1.00651161]
[1747853769229,1.02654096,667.61,666.32,1.00651161]
[1747853771132,1.02654096,667.6,666.31,0.47325388]
[1747853772033,1.02654096,667.6,665.96,1.41045768]
[1747853772334,1.02654096,667.59,665.96,1.41045768]
[1747853774138,1.02654096,667.58,666.03,1.00651161]
[1747853775337,1.02654096,667.57,666.03,1.00651161]
[1747853776737,1.02654096,667.56,666.03,1.00651161]
[1747853778630,1.02654096,667.55,666.03,1.00651161]
[1747853779839,1.02654096,667.54,666.03,1.00651161]
[1747853780939,1.02654096,667.53,666.03,1.00651161]
[1747853782241,1.02654096,667.52,665.73,1.41045768]
[1747853782743,1.02654096,667.52,665.74,0.26085197]
[1747853783342,1.02654096,667.51,665.74,0.26085197]
[1747853784638,1.02654096,667.5,665.74,0.26085197]
[1747853785643,1.02654096,667.5,665.73,1.41045768]
[1747853785838,1.02654096,667.5,665.74,0.26085392]
[1747853786037,1.02654096,667.49,665.74,0.26085392]
[1747853786243,1.02654096,667.49,665.99,0.47325388]
[1747853787443,1.02654096,667.48,665.99,0.47325388]
[1747853788547,1.02654096,667.47,665.99,0.47325388]
[1747853788948,1.02654096,667.47,665.84,0.47325388]
[1747853789848,1.02654096,667.46,665.84,0.47325388]
[1747853791851,1.02654096,667.45,665.84,0.47325388]
[1747853792450,1.02654096,667.45,665.8,0.47325388]
[1747853793452,1.02654096,667.44,665.89,1.00651161]
[1747853795052,1.02654096,667.43,665.89,1.00651161]
[1747853796752,1.02654096,667.42,665.89,1.00651161]
[1747853798152,1.02654096,667.41,665.89,1.00651161]
[1747853799553,1.02654096,667.4,665.89,1.00651161]
[1747853801650,1.02654096,667.39,665.89,1.00651161]
[1747853803155,1.02654096,667.38,665.89,1.00651161]
[1747853803355,1.02654096,667.38,665.93,0.47325388]
[1747853804959,1.02654096,667.55,665.93,0.47325388]
[1747853805761,1.02654096,667.55,666.0,0.47325388]
[1747853806260,1.02654096,667.54,666.0,0.47325388]
[1747853807857,1.02654096,667.53,666.0,0.47325388]
[1747853808156,1.02654096,667.53,666.06,0.47325388]
[1747853809159,1.02654096,667.52,666.06,0.47325388]
[1747853810363,1.02654096,667.51,666.06,0.47325388]
[1747853811466,1.02654096,667.5,666.12,0.47325388]
[1747853812865,1.02654096,667.49,666.12,0.47325388]
[1747853814071,1.02654096,667.49,666.21,0.47325388]
[1747853814265,1.02654096,667.48,666.21,0.47325388]
[1747853815663,1.02654096,667.47,666.21,0.47325388]
[1747853816765,1.02654096,667.46,666.21,0.47325388]
[1747853817667,1.02654096,667.46,666.1,0.2608373]
[1747853817668,1.02654096,667.46,666.29,0.47325388]
[1747853818865,1.02654096,667.45,666.29,0.47325388]
[1747853820369,1.02654096,667.44,666.18,0.26081971]
[1747853821969,1.02654096,667.43,666.18,0.26081971]
[1747853823369,3.70612448,668.66,666.18,0.26081971]
[1747853823370,1.02654096,667.42,666.18,0.26081971]
[1747853824671,1.02654096,667.42,665.94,0.47325388]
[1747853825070,1.10876253,667.72,665.94,0.47325388]
[1747853825071,1.02654096,667.41,665.94,0.47325388]
[1747853826071,1.02654096,667.41,665.95,0.26082851]
[1747853826271,1.02654096,667.4,665.95,0.26082851]
[1747853827071,1.02654096,667.39,665.95,0.26082851]
[1747853827671,1.02654096,667.39,665.9,1.00651161]
[1747853828774,1.02654096,667.38,665.88,1.00651161]
[1747853829072,1.02654096,667.38,665.91,0.26084806]
[1747853830076,1.02654096,667.37,665.91,0.26084806]
[1747853830675,1.02654096,667.37,665.88,1.00651161]
[1747853831075,1.02654096,667.37,665.91,0.26085783]
[1747853831577,1.02654096,667.36,665.91,0.26085783]
[1747853833076,1.02654096,667.35,665.91,0.26085783]
[1747853833679,1.02654096,667.35,665.88,1.00651161]
[1747853834879,1.02654096,667.35,665.89,0.26086565]
[1747853835079,2.13530349,667.34,665.89,0.26086565]
[1747853835480,2.13530349,667.34,666.11,0.47325388]
[1747853836280,1.02654096,667.33,666.11,0.47325388]
[1747853837576,1.48244979,667.46,666.11,0.47325388]
[1747853837577,1.02654096,667.32,666.11,0.47325388]
[1747853837975,1.02654096,667.32,665.88,1.00651161]
[1747853837976,1.02654096,667.32,666.13,0.47325388]
[1747853838480,1.02654096,667.31,666.13,0.47325388]
[1747853840182,1.02654096,667.3,666.13,0.47325388]
[1747853840583,1.02654096,667.3,666.28,0.47325388]
[1747853841484,1.02654096,667.29,666.28,0.47325388]
[1747853842581,1.02654096,667.28,666.28,1.47976549]